fUST/lending_fUST_20260205
["ID","MTS","AMOUNT","RATE_DAILY","PERIOD"]
[404549342,1770278285698,-500.0,0.00060273,120]
[404549343,1770278285754,-500.0,0.00060273,120]
[404549344,1770278285808,-500.0,0.00060273,120]
[404549345,1770278285864,-812.05,0.00060273,120]
[404549346,1770278285919,-2641.29,0.00060273,120]
[404549347,1770278285972,-759.38,0.00060273,120]
[404549348,1770278286029,-538.73,0.00060273,120]
[404549349,1770278286086,-500.0,0.00060273,120]
[404549350,1770278286145,-538.38,0.00060273,120]
[404549351,1770278286200,-500.0,0.00060273,120]
[404549352,1770278286258,-610.48273823,0.00060273,120]
[404549353,1770278286316,-500.0,0.00060273,120]
[404549354,1770278286379,-500.0,0.00060273,120]
[404549355,1770278286443,-200.0,0.00060273,120]
[404549356,1770278286509,-500.0,0.00060273,120]
[404549357,1770278286684,-780.7,0.00060273,120]
[404549358,1770278286747,-277.0,0.00060273,120]
[404549359,1770278286810,-674.29,0.00060273,120]
[404549360,1770278286870,-574.49,0.00060273,120]
[404549361,1770278286933,-500.0,0.00060273,120]
[404549362,1770278286992,-819.11,0.00060273,120]
[404549363,1770278287050,-720.66,0.00060273,120]
[404549364,1770278287107,-500.0,0.00060273,120]
[404549365,1770278287164,-2000.0,0.00060273,120]
[404549366,1770278287221,-1390.09610596,0.00060273,120]
[404549367,1770278287276,-500.0,0.00060273,54]
[404549368,1770278287334,-659.27,0.00060273,120]
[404549369,1770278287398,-500.0,0.00060273,120]
[404549370,1770278287458,-1139.7,0.00060273,120]
[404549371,1770278287518,-2407.29,0.00060273,120]
[404549372,1770278287576,-500.0,0.00060273,120]
[404549373,1770278287633,-704.05,0.00060273,120]
[404549374,1770278287690,-500.0,0.00060273,120]
[404549375,1770278287747,-945.4,0.00060273,120]
[404549376,1770278287810,-161.82,0.0006041,120]
[404549377,1770278287875,-500.0,0.00060821,30]
[404549378,1770278287931,-818.26,0.00060821,120]
[404549379,1770278287989,-584.19,0.00060821,120]
[404549380,1770278288046,-884.33,0.00060821,120]
[404549381,1770278288106,-2441.21,0.00060821,120]
[404549382,1770278288166,-500.0,0.00060821,120]
[404549383,1770278288226,-500.0,0.00060821,120]
[404549384,1770278288283,-500.0,0.00060821,120]
[404549385,1770278288344,-812.05,0.00060821,120]
[404549386,1770278288409,-2641.29,0.00060821,120]
[404549387,1770278288469,-759.38,0.00060821,120]
[404549388,1770278288528,-538.73,0.00060821,120]
[404549389,1770278288588,-500.0,0.00060821,120]
[404549390,1770278288649,-538.38,0.00060821,120]
[404549391,1770278288706,-500.0,0.00060821,120]
[404549392,1770278288764,-500.0,0.00060821,120]
[404549393,1770278288823,-500.0,0.00060821,120]
[404549394,1770278288882,-200.0,0.00060821,120]
[404549395,1770278288940,-547.49954965,0.00060821,120]
[404549396,1770278289001,-780.7,0.00060821,120]
[404549397,1770278289061,-674.29,0.00060821,120]
[404549398,1770278289121,-574.49,0.00060821,120]
[404549399,1770278289178,-500.0,0.00060821,120]
[404549400,1770278289236,-819.11,0.00060821,120]
[404549401,1770278289295,-720.66,0.00060821,120]
[404549402,1770278289352,-500.0,0.00060821,120]
[404549403,1770278289409,-523.5304141,0.00060821,54]
[404549404,1770278289469,-659.27,0.00060821,120]
[404549405,1770278289528,-500.0,0.00060821,120]
[404549406,1770278289585,-1139.7,0.00060821,120]
[404549407,1770278289645,-2407.29,0.00060821,120]
[404549408,1770278289703,-500.0,0.00060821,120]
[404549409,1770278289766,-704.05,0.00060821,120]
[404549410,1770278289828,-500.0,0.00060821,120]
[404549411,1770278289890,-945.4,0.00060821,120]
[404549412,1770278289955,-161.82,0.00061095,120]
[404549413,1770278290016,-311.5,0.00061292,120]
[404549414,1770278290075,-369.0,0.00061292,120]
[404549415,1770278290134,-500.0,0.00061369,30]
[404549416,1770278290193,-818.26,0.00061369,120]
[404549417,1770278290325,-584.19,0.00061369,120]
[404549418,1770278290383,-884.33,0.00061369,120]
[404549419,1770278290442,-2441.21,0.00061369,120]
[404549420,1770278290500,-500.0,0.00061369,120]
[404549421,1770278290559,-500.0,0.00061369,120]
[404549422,1770278290618,-210.54146687,0.00061369,120]
[404549423,1770278290682,-812.05,0.00061369,120]
[404549424,1770278290737,-2641.29,0.00061369,120]
[404549425,1770278290795,-759.38,0.00061369,120]
[404549426,1770278290853,-538.73,0.00061369,120]
[404549427,1770278290909,-500.0,0.00061369,120]
[404549428,1770278290965,-538.38,0.00061369,120]
[404549429,1770278291023,-500.0,0.00061369,120]
[404549430,1770278291082,-500.0,0.00061369,120]
[404549431,1770278291140,-453.06892553,0.00061369,120]
[404549432,1770278291197,-200.0,0.00061369,120]
[404549433,1770278291255,-780.7,0.00061369,120]
[404549434,1770278291313,-674.29,0.00061369,120]
[404549435,1770278291373,-574.49,0.00061369,120]
[404549436,1770278291431,-500.0,0.00061369,120]
[404549437,1770278291491,-819.11,0.00061369,120]
[404549438,1770278291555,-720.66,0.00061369,120]
[404549439,1770278291615,-500.0,0.00061369,120]
[404549440,1770278291674,-659.27,0.00061369,120]
[404549441,1770278291733,-500.0,0.00061369,120]
[404549442,1770278291795,-1139.7,0.00061369,120]
[404549443,1770278291858,-2407.29,0.00061369,120]
[404549444,1770278291918,-500.0,0.00061369,120]
[404549445,1770278291975,-704.05,0.00061369,120]
[404549446,1770278292033,-500.0,0.00061369,120]
[404549447,1770278292094,-945.4,0.00061369,120]
[404549448,1770278292159,-500.0,0.00061445,120]
[404549449,1770278292219,-1372.0,0.0006161,120]
[404549450,1770278292277,-161.82,0.0006178,120]
[404549451,1770278292342,-155.0,0.000618,120]
[404549452,1770278292425,-500.0,0.00061917,30]
[404549453,1770278292499,-818.26,0.00061917,120]
[404549454,1770278292556,-584.19,0.00061917,120]
[404549455,1770278292614,-884.33,0.00061917,120]
[404549456,1770278292673,-2441.21,0.00061917,120]
[404549457,1770278292729,-500.0,0.00061917,120]
[404549458,1770278292788,-500.0,0.00061917,120]
[404549459,1770278292848,-812.05,0.00061917,120]
[404549460,1770278292906,-2641.29,0.00061917,120]
[404549461,1770278292966,-759.38,0.00061917,120]
[404549462,1770278293025,-538.73,0.00061917,120]
[404549463,1770278293086,-500.0,0.00061917,120]
[404549464,1770278293147,-538.38,0.00061917,120]
[404549465,1770278293207,-417.75254497,0.00061917,120]
[404549466,1770278293269,-500.0,0.00061917,120]
[404549467,1770278293327,-200.0,0.00061917,120]
[404549468,1770278293384,-780.7,0.00061917,120]
[404549469,1770278293446,-674.29,0.00061917,120]
[404549470,1770278293504,-574.49,0.00061917,120]
[404549471,1770278293569,-500.0,0.00061917,120]
[404549472,1770278293631,-819.11,0.00061917,120]
[404549473,1770278293690,-720.66,0.00061917,120]
[404549474,1770278293748,-500.0,0.00061917,120]
[404549475,1770278293878,-659.27,0.00061917,120]
[404549476,1770278293934,-500.0,0.00061917,120]
[404549477,1770278293991,-1139.7,0.00061917,120]
[404549478,1770278294051,-2407.29,0.00061917,120]
[404549479,1770278294109,-500.0,0.00061917,120]
[404549480,1770278294170,-704.05,0.00061917,120]
[404549481,1770278294230,-500.0,0.00061917,120]
[404549482,1770278294292,-945.4,0.00061917,120]
[404549483,1770278294355,-500.0,0.00062465,30]
[404549484,1770278294415,-818.26,0.00062465,120]
[404549485,1770278294473,-584.19,0.00062465,120]
[404549486,1770278294531,-884.33,0.00062465,120]
[404549487,1770278294589,-2441.21,0.00062465,120]
[404549488,1770278294650,-500.0,0.00062465,120]
[404549489,1770278294710,-500.0,0.00062465,120]
[404549490,1770278294767,-161.82,0.00062465,120]
[404549491,1770278294826,-812.05,0.00062465,120]
[404549492,1770278294884,-2641.29,0.00062465,120]
[404549493,1770278294940,-759.38,0.00062465,120]
[404549494,1770278294997,-538.73,0.00062465,120]
[404549495,1770278295054,-500.0,0.00062465,120]
[404549496,1770278295112,-538.38,0.00062465,120]
[404549497,1770278295167,-500.0,0.00062465,120]
[404549498,1770278295223,-200.0,0.00062465,120]
[404549499,1770278295279,-780.7,0.00062465,120]
[404549500,1770278295336,-674.29,0.00062465,120]
[404549501,1770278295391,-574.49,0.00062465,120]
[404549502,1770278295447,-500.0,0.00062465,120]
[404549503,1770278295504,-819.11,0.00062465,120]
[404549504,1770278295560,-720.66,0.00062465,120]
[404549505,1770278295616,-500.0,0.00062465,120]
[404549506,1770278295671,-659.27,0.00062465,120]
[404549507,1770278295729,-500.0,0.00062465,120]
[404549508,1770278295786,-1139.7,0.00062465,120]
[404549509,1770278295849,-2407.29,0.00062465,120]
[404549510,1770278295909,-500.0,0.00062465,120]
[404549511,1770278295969,-704.05,0.00062465,120]
[404549512,1770278296029,-500.0,0.00062465,120]
[404549513,1770278296089,-945.4,0.00062465,120]
[404549514,1770278296147,-420.0,0.00062502,120]
[404549515,1770278296206,-218.44,0.00063,30]
[404549516,1770278296263,-500.0,0.00063013,30]
[404549517,1770278296321,-818.26,0.00063013,120]
[404549518,1770278296377,-584.19,0.00063013,120]
[404549519,1770278296434,-884.33,0.00063013,120]
[404549520,1770278296492,-2441.21,0.00063013,120]
[404549521,1770278296548,-500.0,0.00063013,120]
[404549522,1770278296608,-500.0,0.00063013,120]
[404549523,1770278296675,-812.05,0.00063013,120]
[404549524,1770278296741,-2641.29,0.00063013,120]
[404549525,1770278296804,-759.38,0.00063013,120]
[404549526,1770278296864,-538.73,0.00063013,120]
[404549527,1770278296923,-500.0,0.00063013,120]
[404549528,1770278296988,-538.38,0.00063013,120]
[404549529,1770278297046,-500.0,0.00063013,120]
[404549530,1770278297208,-270.31345374,0.00063013,120]
[404549531,1770278297269,-780.7,0.00063013,120]
[404549532,1770278297325,-674.29,0.00063013,120]
[404549533,1770278297383,-574.49,0.00063013,120]
[404549534,1770278297442,-288.65160047,0.00063013,120]
[404549535,1770278297500,-819.11,0.00063013,120]
[404549536,1770278297557,-720.66,0.00063013,120]
[404549537,1770278297615,-500.0,0.00063013,120]
[404549538,1770278297672,-659.27,0.00063013,120]
[404549539,1770278297733,-500.0,0.00063013,120]
[404549540,1770278297792,-1139.7,0.00063013,120]
[404549541,1770278297852,-2407.29,0.00063013,120]
[404549542,1770278297910,-500.0,0.00063013,120]
[404549543,1770278297968,-704.05,0.00063013,120]
[404549544,1770278298023,-500.0,0.00063013,120]
[404549545,1770278298081,-945.4,0.00063013,120]
[404549546,1770278298138,-151.0,0.00063014,120]
[404549547,1770278298193,-151.0,0.00063014,120]
[404549548,1770278298248,-151.0,0.00063014,120]
[404549549,1770278298307,-151.0,0.00063014,120]
[404549550,1770278298369,-151.0,0.00063014,120]
[404549551,1770278298427,-151.0,0.00063014,120]
[404549552,1770278298486,-151.0,0.00063014,120]
[404549553,1770278298544,-151.0,0.00063014,120]
[404549554,1770278298606,-151.0,0.00063014,120]
[404549555,1770278298663,-151.0,0.00063014,120]
[404549556,1770278298718,-151.0,0.00063014,120]
[404549557,1770278298774,-151.0,0.00063014,120]
[404549558,1770278298831,-151.0,0.00063014,120]
[404549559,1770278298887,-151.0,0.00063014,120]
[404549560,1770278298943,-151.0,0.00063014,120]
[404549561,1770278299002,-264.962399,0.00063014,120]
[404549562,1770278299062,-161.82,0.0006315,120]
[404549563,1770278299119,-155.0,0.000635,120]
[404549564,1770278299175,-500.0,0.00063561,30]
[404549565,1770278299230,-818.26,0.00063561,120]
[404549566,1770278299287,-584.19,0.00063561,120]
[404549567,1770278299343,-884.33,0.00063561,120]
[404549568,1770278299401,-2441.21,0.00063561,120]
[404549569,1770278299457,-500.0,0.00063561,120]
[404549570,1770278299516,-500.0,0.00063561,120]
[404549571,1770278299575,-812.05,0.00063561,120]
[404549572,1770278299631,-2641.29,0.00063561,120]
[404549573,1770278299688,-759.38,0.00063561,120]
[404549574,1770278299747,-538.73,0.00063561,120]
[404549575,1770278299809,-500.0,0.00063561,120]
[404549576,1770278299867,-538.38,0.00063561,120]
[404549577,1770278299925,-500.0,0.00063561,120]
[404549578,1770278299985,-780.7,0.00063561,120]
[404549579,1770278300044,-674.29,0.00063561,120]
[404549580,1770278300103,-574.49,0.00063561,120]
[404549581,1770278300162,-819.11,0.00063561,120]
[404549582,1770278300221,-720.66,0.00063561,120]
[404549583,1770278300278,-500.0,0.00063561,120]
[404549584,1770278300407,-659.27,0.00063561,120]
[404549585,1770278300467,-500.0,0.00063561,120]
[404549586,1770278300524,-1139.7,0.00063561,120]
[404549587,1770278300585,-2407.29,0.00063561,120]
[404549588,1770278300643,-500.0,0.00063561,120]
[404549589,1770278300700,-704.05,0.00063561,120]
[404549590,1770278300760,-500.0,0.00063561,120]
[404549591,1770278300817,-945.4,0.00063561,120]
[404549592,1770278300876,-161.82,0.00063835,120]
[404549593,1770278300933,-500.0,0.00064109,30]
[404549594,1770278300991,-818.26,0.00064109,120]
[404549595,1770278301049,-584.19,0.00064109,120]
[404549596,1770278301105,-884.33,0.00064109,120]
[404549597,1770278301160,-2441.21,0.00064109,120]
[404549598,1770278301217,-421.82199968,0.00064109,120]
[404549599,1770278301273,-500.0,0.00064109,120]
[404549600,1770278301328,-812.05,0.00064109,120]
[404549601,1770278301382,-2641.29,0.00064109,120]
[404549602,1770278301438,-759.38,0.00064109,120]
[404549603,1770278301494,-538.73,0.00064109,120]
[404549604,1770278301550,-500.0,0.00064109,120]
[404549605,1770278301604,-538.38,0.00064109,120]
[404549606,1770278301661,-500.0,0.00064109,120]
[404549607,1770278301724,-780.7,0.00064109,120]
[404549608,1770278301782,-674.29,0.00064109,120]
[404549609,1770278301844,-574.49,0.00064109,120]
[404549610,1770278301904,-819.11,0.00064109,120]
[404549611,1770278301959,-720.66,0.00064109,120]
[404549612,1770278302015,-568.28241492,0.00064109,120]
[404549613,1770278302071,-659.27,0.00064109,120]
[404549614,1770278302130,-500.0,0.00064109,120]
[404549615,1770278302187,-1139.7,0.00064109,120]
[404549616,1770278302247,-2407.29,0.00064109,120]
[404549617,1770278302301,-500.0,0.00064109,120]
[404549618,1770278302357,-704.05,0.00064109,120]
[404549619,1770278302412,-500.0,0.00064109,120]
[404549620,1770278302467,-945.4,0.00064109,120]
[404549621,1770278302521,-500.0,0.00064153,120]
[404549622,1770278302575,-161.82,0.0006452,120]
[404549623,1770278302626,-1372.0,0.0006461,120]
[404549624,1770278302680,-500.0,0.00064657,30]
[404549625,1770278302734,-818.26,0.00064657,120]
[404549626,1770278302789,-584.19,0.00064657,120]
[404549627,1770278302845,-884.33,0.00064657,120]
[404549628,1770278302899,-2441.21,0.00064657,120]
[404549629,1770278302951,-500.0,0.00064657,120]
[404549630,1770278303005,-812.05,0.00064657,120]
[404549631,1770278303061,-2641.29,0.00064657,120]
[404549632,1770278303115,-759.38,0.00064657,120]
[404549633,1770278303170,-538.73,0.00064657,120]
[404549634,1770278303225,-500.0,0.00064657,120]
[404549635,1770278303279,-538.38,0.00064657,120]
[404549636,1770278303333,-500.0,0.00064657,120]
[404549637,1770278303458,-780.7,0.00064657,120]
[404549638,1770278303514,-674.29,0.00064657,120]
[404549639,1770278303576,-574.49,0.00064657,120]
[404549640,1770278303636,-819.11,0.00064657,120]
[404549641,1770278303698,-720.66,0.00064657,120]
[404549642,1770278303762,-659.27,0.00064657,120]
[404549643,1770278303822,-285.58931593,0.00064657,120]
[404549644,1770278303883,-1139.7,0.00064657,120]
[404549645,1770278303945,-2407.29,0.00064657,120]
[404549646,1770278304008,-704.05,0.00064657,120]
[404549647,1770278304067,-380.82028572,0.00064657,120]
[404549648,1770278304129,-945.4,0.00064657,120]
[404549649,1770278304188,-500.0,0.00064678,120]
[404549650,1770278304245,-121833.63101454,0.00065,120]
[404549651,1770278304300,-867.49792751,0.00065,120]
[404549652,1770278304360,-155.0,0.000652,120]
[404549653,1770278304418,-500.0,0.00065205,30]
[404549654,1770278304477,-818.26,0.00065205,120]
[404549655,1770278304536,-584.19,0.00065205,120]
[404549656,1770278304594,-884.33,0.00065205,120]
[404549657,1770278304652,-2441.21,0.00065205,120]
[404549658,1770278304710,-261.71212186,0.00065205,120]
[404549659,1770278304767,-161.82,0.00065205,120]
[404549660,1770278304825,-812.05,0.00065205,120]
[404549661,1770278304882,-2641.29,0.00065205,120]
[404549662,1770278304938,-759.38,0.00065205,120]
[404549663,1770278304994,-538.73,0.00065205,120]
[404549664,1770278305052,-500.0,0.00065205,120]
[404549665,1770278305107,-538.38,0.00065205,120]
[404549666,1770278305161,-500.0,0.00065205,120]
[404549667,1770278305218,-780.7,0.00065205,120]
[404549668,1770278305274,-674.29,0.00065205,120]
[404549669,1770278305331,-574.49,0.00065205,120]
[404549670,1770278305385,-819.11,0.00065205,120]
[404549671,1770278305440,-720.66,0.00065205,120]
[404549672,1770278305496,-659.27,0.00065205,120]
[404549673,1770278305552,-1139.7,0.00065205,120]
[404549674,1770278305614,-2407.29,0.00065205,120]
[404549675,1770278305672,-704.05,0.00065205,120]
[404549676,1770278305731,-945.4,0.00065205,120]
[404549677,1770278305790,-327.303,0.00065502,120]
[404549678,1770278305846,-27918.95952885,0.00065577,30]
[404549679,1770278305903,-27918.95952885,0.00065577,30]
[404549680,1770278305960,-247.25133474,0.00065753,30]
[404549681,1770278306017,-818.26,0.00065753,120]
[404549682,1770278306074,-584.19,0.00065753,120]
[404549683,1770278306132,-884.33,0.00065753,120]
[404549684,1770278306188,-2441.21,0.00065753,120]
[404549685,1770278306243,-812.05,0.00065753,120]
[404549686,1770278306298,-889.60285899,0.00065753,120]
[404549687,1770278307163,-508.428126,0.0003941,7]
[404549688,1770278307221,-305.4781445,0.0003941,7]
[404549689,1770278332539,358.15,0.0003941,120]
[404549690,1770278334658,-1000.0,0.00033253,30]
[404549691,1770278334727,-164.47,0.00048,90]
[404549692,1770278334787,-250.0,0.00054794,120]
[404549693,1770278334846,-250.0,0.00054794,120]
[404549694,1770278334905,-1000.0,0.00054794,120]
[404549695,1770278334966,-242.15909246,0.00054794,120]
[404549696,1770278335023,-250.0,0.00054794,120]
[404549697,1770278335081,-250.0,0.00054794,120]
[404549698,1770278335137,-250.0,0.00054794,120]
[404549699,1770278335193,-250.0,0.00054794,120]
[404549700,1770278335247,-1000.0,0.00054794,120]
[404549701,1770278335304,-251.11897888,0.00054794,120]
[404549702,1770278335357,-250.0,0.00054794,120]
[404549703,1770278335417,-250.0,0.00054794,120]
[404549704,1770278335473,-500.0,0.00054794,120]
[404549705,1770278335529,-250.0,0.00054794,120]
[404549706,1770278335587,-250.0,0.00054794,120]
[404549707,1770278335646,-260.4103811,0.00054794,120]
[404549708,1770278335704,-1000.0,0.00054794,120]
[404549709,1770278335761,-250.0,0.00054794,120]
[404549710,1770278335822,-250.0,0.00054794,120]
[404549711,1770278335880,-500.0,0.00054794,120]
[404549712,1770278335934,-250.0,0.00054794,120]
[404549713,1770278335993,-270.0455652,0.00054794,120]
[404549714,1770278336050,-250.0,0.00054794,120]
[404549715,1770278336104,-250.0,0.00054794,120]
[404549716,1770278336160,-500.0,0.00054794,120]
[404549717,1770278336215,-250.0,0.00054794,120]
[404549718,1770278336274,-250.0,0.00054794,120]
[404549719,1770278336330,-280.03725112,0.00054794,120]
[404549720,1770278336389,-250.0,0.00054794,120]
[404549721,1770278336451,-500.0,0.00054794,120]
[404549722,1770278336508,-250.0,0.00054794,120]
[404549723,1770278336568,-250.0,0.00054794,120]
[404549725,1770278336633,-290.39862941,0.00054794,120]
[404549726,1770278336771,-250.0,0.00054794,120]
[404549727,1770278336840,-500.0,0.00054794,120]
[404549728,1770278336898,-250.0,0.00054794,120]
[404549729,1770278336955,-250.0,0.00054794,120]
[404549730,1770278337013,-301.1433787,0.00054794,120]
[404549731,1770278337070,-500.0,0.00054794,120]
[404549732,1770278337126,-250.0,0.00054794,120]
[404549733,1770278337187,-500.0,0.00054794,120]
[404549734,1770278337246,-250.0,0.00054794,120]
[404549735,1770278337306,-500.0,0.00054794,120]
[404549736,1770278337361,-250.0,0.00054794,120]
[404549737,1770278337418,-250.0,0.00054794,120]
[404549738,1770278337475,-250.0,0.00054794,120]
[404549739,1770278337532,-250.0,0.00054794,120]
[404549740,1770278337587,-250.0,0.00054794,120]
[404549741,1770278337645,-250.0,0.00054794,120]
[404549742,1770278337703,-250.0,0.00054794,120]
[404549743,1770278337763,-250.0,0.00054794,120]
[404549744,1770278337822,-250.0,0.00054794,120]
[404549745,1770278337880,-250.0,0.00054794,120]
[404549746,1770278337936,-250.0,0.00054794,120]
[404549747,1770278337993,-250.0,0.00054794,120]
[404549748,1770278338049,-500.0,0.00054794,120]
[404549749,1770278338107,-500.0,0.00055342,120]
[404549750,1770278338172,-500.0,0.0005589,120]
[404549751,1770278338236,-500.0,0.00056438,120]
[404549752,1770278338296,-151.0,0.00056986,120]
[404549753,1770278338355,-151.0,0.00056986,120]
[404549754,1770278338414,-151.0,0.00056986,120]
[404549755,1770278338475,-151.0,0.00056986,120]
[404549756,1770278338535,-151.0,0.00056986,120]
[404549757,1770278338594,-185.96252,0.00056986,120]
[404549758,1770278338652,-537.28536281,0.00056986,120]
[404549759,1770278338711,-151.0,0.0005863,120]
[404549760,1770278338771,-151.0,0.0005863,120]
[404549761,1770278338828,-151.0,0.0005863,120]
[404549762,1770278338890,-151.0,0.0005863,120]
[404549763,1770278338949,-151.0,0.0005863,120]
[404549764,1770278339008,-500.0,0.00058742,120]
[404549765,1770278339067,-800.0,0.00059717,60]
[404549766,1770278339126,-800.0,0.00059748,60]
[404549767,1770278339185,-800.0,0.00059769,60]
[404549768,1770278339241,-591.11441809,0.00059843,60]
[404549769,1770278339300,-800.0,0.00059853,60]
[404549770,1770278339359,-800.0,0.00059873,60]
[404549771,1770278339507,-800.0,0.00059885,60]
[404549772,1770278339564,-800.0,0.00059892,60]
[404549773,1770278339623,-800.0,0.00059893,60]
[404549774,1770278339681,-800.0,0.00059898,60]
[404549775,1770278339738,-800.0,0.00059901,60]
[404549776,1770278339794,-800.0,0.00059917,60]
[404549777,1770278339852,-800.0,0.00059952,60]
[404549778,1770278339909,-800.0,0.00059958,60]
[404549779,1770278339969,-800.0,0.00059975,60]
[404549780,1770278340027,-160.573951,0.00059998,120]
[404549781,1770278340087,-151.0,0.00059998,120]
[404549782,1770278340146,-151.0,0.00059998,120]
[404549783,1770278340205,-151.0,0.00059998,120]
[404549784,1770278340265,-151.0,0.00059998,120]
[404549785,1770278340327,-151.0,0.00059998,120]
[404549786,1770278340393,-249.53969691,0.0006141,120]
[404549787,1770278340453,-277.0,0.0006179,120]
[404549788,1770278340514,-151.0,0.00064109,120]
[404549789,1770278340574,-151.0,0.00064109,120]
[404549790,1770278340635,-151.0,0.00064109,120]
[404549791,1770278340698,-271.044411,0.00064109,120]
[404549792,1770278340758,-151.0,0.00065577,120]
[404549793,1770278340823,-151.0,0.00065577,120]
[404549794,1770278340882,-151.0,0.00065577,120]
[404549795,1770278340944,-1751.68714101,0.00065753,120]
[404549796,1770278341001,-759.38,0.00065753,120]
[404549797,1770278341057,-538.73,0.00065753,120]
[404549798,1770278341114,-500.0,0.00065753,120]
[404549799,1770278341170,-538.38,0.00065753,120]
[404549800,1770278341226,-500.0,0.00065753,120]
[404549801,1770278341280,-819.11,0.00065753,120]
[404549802,1770278341338,-720.66,0.00065753,120]
[404549803,1770278341396,-659.27,0.00065753,120]
[404549804,1770278341454,-1139.7,0.00065753,120]
[404549805,1770278341512,-2407.29,0.00065753,120]
[404549806,1770278341571,-704.05,0.00065753,120]
[404549807,1770278341627,-945.4,0.00065753,120]
[404549808,1770278341686,-2184.34402865,0.00065753,30]
[404549809,1770278341752,-232.0,0.00065753,30]
[404549810,1770278341825,-161.85144692,0.0006589,120]
[404549811,1770278341894,-812.05,0.00066301,120]
[404549812,1770278341949,-2641.29,0.00066301,120]
[404549813,1770278342003,-759.38,0.00066301,120]
[404549814,1770278342129,-538.73,0.00066301,120]
[404549815,1770278342184,-500.0,0.00066301,120]
[404549816,1770278342245,-538.38,0.00066301,120]
[404549817,1770278342300,-500.0,0.00066301,120]
[404549818,1770278342358,-819.11,0.00066301,120]
[404549819,1770278342412,-720.66,0.00066301,120]
[404549820,1770278342469,-659.27,0.00066301,120]
[404549821,1770278342525,-1139.7,0.00066301,120]
[404549822,1770278342583,-2407.29,0.00066301,120]
[404549823,1770278342640,-704.05,0.00066301,120]
[404549824,1770278342699,-945.4,0.00066301,120]
[404549825,1770278342755,-812.05,0.00066849,120]
[404549826,1770278342815,-2641.29,0.00066849,120]
[404549827,1770278342870,-759.38,0.00066849,120]
[404549828,1770278342925,-538.73,0.00066849,120]
[404549829,1770278342978,-286.59622337,0.00066849,120]
[404549830,1770278343032,-538.38,0.00066849,120]
[404549831,1770278343087,-292.50497071,0.00066849,120]
[404549832,1770278343144,-819.11,0.00066849,120]
[404549833,1770278343201,-720.66,0.00066849,120]
[404549834,1770278343257,-659.27,0.00066849,120]
[404549835,1770278343313,-1139.7,0.00066849,120]
[404549836,1770278343372,-2407.29,0.00066849,120]
[404549837,1770278343428,-704.05,0.00066849,120]
[404549838,1770278343485,-945.4,0.00066849,120]
[404549839,1770278343544,-155.0,0.000669,120]
[404549840,1770278343604,-812.25739121,0.00067397,120]
[404549841,1770278343663,-2641.36966924,0.00067397,120]
[404549842,1770278343721,-759.58591658,0.00067397,120]